[Event "Romanian Championship 2024"]
[Site "Eforie Nord"]
[Date "2024.02.24"]
[Round "1.17"]
[White "Ciorgovean, Iustin"]
[Black "Cruceru-Uceanu, Tudor-Mihai"]
[Result "1-0"]
[ECO "C54"]
[WhiteElo "2310"]
[BlackElo "1894"]
[Annotator "TA"]
[PlyCount "141"]
[EventDate "2024.02.24"]
[EventType "swiss"]
[EventCountry "ROU"]
[SourceTitle "playchess.com"]
[Source "ChessBase"]
[SourceQuality "1"]
[TimeControl "40/5400+30:900+30"]

{[%evp 9,141,14,27,13,22,17,39,22,28,26,32,30,31,26,25,18,31,7,39,29,35,45,57,68,82,82,108,50,50,50,56,56,56,30,58,39,38,25,39,24,26,27,33,26,28,0,16,18,22,15,11,14,14,15,32,24,16,11,8,8,14,14,14,14,29,21,129,128,120,126,131,128,140,139,146,145,140,101,103,103,133,96,116,86,60,60,56,58,85,87,87,62,78,82,61,70,87,87,89,76,116,87,646,646,639,628,614,614,914,907,1037,1037,1066,1051,1050,1094,1083,1125,1131,1101,29978,29980,29987,29988,3069,2666,29988,29989,29989,29990,29991,29992,29992,29993]} 1. e4 {[%emt 0:00:01]} e5 {[%emt 0:00:07]} 2. Nf3 {[%emt 0:00:04]} Nc6 {[%emt 0:00:03]} 3. Bc4 {[%emt 0:00:04]} Bc5 {[%emt 0:00:04]} 4. c3 {[%emt 0:00:04]} Nf6 {[%emt 0:00:08]} 5. d3 {[%emt 0:00:04]} a6 {[%emt 0:00:06]} 6. a4 {[%emt 0:00:34]} d6 {[%emt 0:00:04]} 7. O-O {[%emt 0:00:12]} Ba7 {[%emt 0:00:11]} 8. Re1 {[%emt 0:00:17] White is slightly better.} h6 {[%emt 0:00:23]} 9. Nbd2 {[%emt 0:00:26][%cal Bb1d2,Bd2f1,Bf1g3][%mdl 32]} O-O {[%emt 0:00:17]} 10. h3 {[%emt 0:00:09]} Ne7 {[%emt 0:00:13]} 11. Bb3 {[%emt 0:05:03]} Ng6 {[%emt 0:01:07]} 12. d4 {[%emt 0:07:52]} Re8 {[%emt 0:04:15]} 13. Bc2 {[%emt 0:00:15]} Be6 {[%emt 0:08:26]} 14. Nf1 {[%emt 0:04:04]} c6 {[%emt 0:02:17]} 15. Ng3 {[%emt 0:03:28]} Qd7 {[%emt 0:11:28]} 16. Be3 {[%emt 0:03:05]} Kh7 {[%emt 0:28:23]} 17. a5 {[%emt 0:07:02]} Bb8 {[%emt 0:05:43]} 18. dxe5 {[%emt 0:10:00]} (18. Qe2 $16) 18... dxe5 $14 {[%emt 0:00:59]} 19. Qxd7 {[%emt 0:00:33]} Nxd7 {[%emt 0:00:46]} 20. Red1 {[%emt 0:00:26][%cal Oc2b3]} Bc7 {[%emt 0:09:26]} 21. Nd2 {[%emt 0:06:22]} Rad8 {[%emt 0:03:37]} 22. Bb3 {[%emt 0:00:25]} Ngf8 {[%emt 0:00:33]} 23. Bc4 {[%emt 0:02:58]} g6 {[%emt 0:02:57]} 24. Bxe6 {[%emt 0:02:54]} Nxe6 {[%emt 0:00:09]} 25. Nc4 {[%emt 0:00:05]} f6 {[%emt 0:01:48]} 26. b4 {[%emt 0:04:08]} Ndf8 {[%emt 0:01:23]} 27. Nf1 {[%emt 0:01:18]} Kg7 {[%emt 0:00:57]} 28. f3 {[%emt 0:00:26]} h5 {[%emt 0:00:23]} 29. Bb6 {[%emt 0:03:11]} Rxd1 {[%emt 0:02:23]} 30. Rxd1 {[%emt 0:00:03]} Rd8 {[%emt 0:00:09]} 31. Rxd8 {[%emt 0:01:55]} Bxb6+ {[%emt 0:00:26]} 32. axb6 {[%emt 0:07:17]} Nxd8 $11 {[%emt 0:00:05][%mdl 4096] Endgame. KNN-KNN} 33. Nfd2 {[%emt 0:00:04]} Nd7 {[%emt 0:01:40]} 34. Nb3 {[%emt 0:00:33]} Kf8 {[%emt 0:01:11]} 35. g3 {[%emt 0:00:32]} Ke7 {[%emt 0:01:32]} 36. Kf2 {[%emt 0:00:37]} Ke6 {[%emt 0:00:48]} 37. f4 {[%emt 0:02:02][%cal Bf3f4,Bf4f5][%mdl 32]} g5 {[%emt 0:02:52]} (37... exf4 $11 {remains equal.} 38. gxf4 f5) 38. f5+ $16 {[%emt 0:03:26]} Ke7 {[%emt 0:00:09]} 39. Ke2 {[%emt 0:00:34]} Nf7 {[%emt 0:01:13]} 40. Nba5 {[%emt 0:00:00]} Nd8 {[%emt 0:00:00]} 41. Kd3 {[%emt 0:00:36]} Nf8 {[%emt 0:01:15]} 42. Nb3 {[%emt 0:01:32]} Nd7 {[%emt 0:00:11]} 43. Kc2 {[%emt 0:00:29]} Nf7 {[%emt 0:00:17]} 44. Nba5 {[%emt 0:00:27]} Nd8 {[%emt 0:00:09]} 45. Kb2 {[%emt 0:02:59]} Nf8 {[%emt 0:02:04]} 46. Nb3 {[%emt 0:01:23]} Nd7 {[%emt 0:00:06]} 47. Ka3 {[%emt 0:00:50]} Nf7 {[%emt 0:00:19]} 48. Nba5 {[%emt 0:00:24]} Nd8 {[%emt 0:00:05]} 49. Ka4 {[%emt 0:03:01]} Nb8 {[%emt 0:00:43]} 50. Nd2 {[%emt 0:04:26] White is more active.} Nd7 {[%emt 0:00:47] [#]} 51. Nac4 {[%emt 0:00:08]} Nf7 {[%emt 0:01:16]} 52. Ka5 {[%emt 0:00:39]} Nd8 {[%emt 0:01:32]} 53. Nb2 {[%emt 0:10:46]} Nf7 {[%emt 0:00:21]} 54. c4 {[%emt 0:00:47][%cal Bc3c4,Bc4c5][%mdl 32]} Nd6 {[%emt 0:01:07]} 55. Nd3 {[%emt 0:00:15]} Nc8 $2 {[%emt 0:00:40][%mdl 8192] This costs Black the game.} (55... Kd8 $16) 56. c5 $18 {[%emt 0:00:10]} Kf7 {[%emt 0:02:23]} 57. Nc4 {[%emt 0:00:15]} Ke7 {[%emt 0:01:51]} 58. Ka4 {[%emt 0:00:24]} Nb8 {[%emt 0:02:43]} 59. Na5 {[%emt 0:01:07]} Kd7 {[%emt 0:00:39]} 60. Nxb7 {[%emt 0:00:25]} Ke7 {[%emt 0:00:39]} 61. Nb2 {[%emt 0:01:07]} Ke8 {[%emt 0:01:34]} 62. Nc4 {[%emt 0:00:36]} Kd7 {[%emt 0:00:06]} 63. Nbd6 {[%emt 0:00:23]} Ne7 {[%emt 0:01:08]} 64. Ka5 {[%emt 0:00:48] [#] b7 is the strong threat.} Ng8 {[%emt 0:00:19]} 65. b7 {[%emt 0:02:03]} Kc7 {[%emt 0:00:09]} 66. Nb6 {[%emt 0:00:13]} h4 {[%emt 0:00:20]} 67. gxh4 {[%emt 0:00:10] White threatens Na8+ and mate.} gxh4 {[%emt 0:00:06]} 68. Na8+ {[%emt 0:00:13] White mates.} Kd8 {[%emt 0:00:09]} 69. Kb6 {[%emt 0:00:25]} Nh6 {[%emt 0:00:07]} 70. Ka7 {[%emt 0:00:16]} Nd7 {[%emt 0:00:08]} 71. Nb6 {[%emt 0:00:18] Weighted Error Value: White=0.08 (flawless) /Black=0.26 (precise) .  Loses game:     	---       	Black=1      Mistake:       	White=1     	Black=1      Inaccurate:     	White=2     	Black=4      OK:         	White=19    	Black=18     Best:        	White=3     	---} 1-0

[Event "Romanian Championship 2024"]
[Site "Eforie Nord"]
[Date "2024.02.24"]
[Round "1.18"]
[White "Ghita, Vlad-Bogdan"]
[Black "Serban, Cristian-Stefan"]
[Result "0-1"]
[ECO "B13"]
[WhiteElo "1893"]
[BlackElo "2309"]
[Annotator "TA"]
[PlyCount "54"]
[EventDate "2024.02.24"]
[EventType "swiss"]
[EventCountry "ROU"]
[SourceTitle "playchess.com"]
[Source "ChessBase"]
[SourceQuality "1"]
[TimeControl "40/5400+30:900+30"]

{[%evp 17,54,27,40,0,21,0,0,0,0,-22,-12,-25,0,-23,-35,-35,-32,-50,-49,-62,-25,-53,-53,-61,-56,-71,-72,-131,-118,-156,-141,-162,-151,-310,-321,-761,-760,-822,-790]} 1. e4 {[%emt 0:00:03]} c6 {[%emt 0:00:36]} 2. d4 {[%emt 0:00:07]} d5 {[%emt 0:00:05]} 3. exd5 {[%emt 0:00:23]} cxd5 {[%emt 0:00:07]} 4. Bd3 {[%emt 0:00:05]} Nc6 {[%emt 0:00:10]} 5. c3 {[%emt 0:00:05]} Nf6 {[%emt 0:00:15]} 6. Bf4 {[%emt 0:00:13]} Bg4 {[%emt 0:00:07]} 7. Qb3 {[%emt 0:00:03]} Qd7 {[%emt 0:00:06]} 8. Nd2 {[%emt 0:00:26]} e6 {[%emt 0:00:08]} 9. Ngf3 {[%emt 0:00:05]} Bd6 {[%emt 0:00:05]} 10. Bg3 {[%emt 0:01:34]} Bh5 {[%emt 0:17:48]} 11. Ne5 {[%emt 0:01:47]} Qc7 {[%emt 0:00:17][%cal Rc6e5]} 12. f4 {[%emt 0:05:39] The position is equal.} Bg6 {[%emt 0:01:04]} 13. O-O {[%emt 0:03:22]} Bxd3 {[%emt 0:04:30]} 14. Nxd3 {[%emt 0:00:06]} Nh5 {[%emt 0:00:11]} 15. Qd1 {[%emt 0:02:38]} Nxg3 {[%emt 0:02:23]} 16. hxg3 {[%emt 0:00:06]} g6 {[%emt 0:07:51]} 17. Qf3 {[%emt 0:00:41]} h5 {[%emt 0:07:31]} 18. Rae1 {[%emt 0:01:36]} Kf8 {[%emt 0:00:19]} 19. Qe2 {[%emt 0:04:00]} Ne7 {[%emt 0:04:11][%cal Bc6e7,Be7f5,Bf5g3,Bg3e4][%mdl 32]} 20. Ne5 {[%emt 0:01:37]} Nf5 {[%emt 0:00:38]} 21. Qd3 {[%emt 0:02:20]} Kg7 {[%emt 0:07:06]} (21... Rb8 {simplifies} 22. Ndf3 Bxe5 23. Nxe5 b5) 22. Kf2 {[%emt 0:04:23]} ({White should play} 22. Ndf3) 22... h4 $17 {[%emt 0:17:13]} 23. g4 {[%emt 0:00:14]} Ng3 {[%emt 0:00:05]} 24. Rg1 {[%emt 0:00:36]} Bxe5 {[%emt 0:00:36]} 25. Rxe5 {[%emt 0:01:19] [#]} (25. fxe5 $17 Raf8 26. Re3) 25... f6 $19 {[%emt 0:01:06]} 26. Rxe6 {[%emt 0:01:04]} (26. Re3 Qxf4+ 27. Rf3 Qxg4 28. Re1) 26... Qxf4+ {[%emt 0:00:05]} 27. Nf3 {[%emt 0:01:15]} Ne4+ {[%emt 0:00:46] Weighted Error Value: White=0.75/Black=0.04 (flawless) .  Mistake:       	White=3     	---        Inaccurate:     	White=2     	Black=1      OK:         	White=1     	Black=12     Best:        	---       	Black=2} 0-1

[Event "Romanian Championship 2024"]
[Site "Eforie Nord"]
[Date "2024.02.24"]
[Round "1.19"]
[White "Prisacaru, Stefan-Emilian"]
[Black "Nastase, Stefan"]
[Result "1-0"]
[ECO "E91"]
[WhiteElo "2289"]
[BlackElo "1815"]
[Annotator "TA"]
[PlyCount "65"]
[EventDate "2024.02.24"]
[EventType "swiss"]
[EventCountry "ROU"]
[SourceTitle "playchess.com"]
[Source "ChessBase"]
[SourceQuality "1"]
[TimeControl "40/5400+30:900+30"]

{[%evp 16,65,50,35,31,42,41,24,45,50,37,35,89,92,89,89,131,155,138,61,63,62,70,57,127,68,157,77,58,77,60,95,80,72,266,225,591,644,633,622,625,627,691,375,1538,1555,29996,29983,29985,29986,29990,29991]} 1. d4 {[%emt 0:00:04]} Nf6 {[%emt 0:00:15]} 2. c4 {[%emt 0:00:04]} g6 {[%emt 0:00:14]} 3. Nc3 {[%emt 0:00:12]} Bg7 {[%emt 0:00:16]} 4. e4 {[%emt 0:00:05]} d6 {[%emt 0:00:07]} 5. Nf3 {[%emt 0:00:03]} O-O {[%emt 0:00:28]} 6. Be2 {[%emt 0:00:03]} c6 {[%emt 0:00:13]} 7. O-O {[%emt 0:03:46]} a6 {[%emt 0:01:17]} 8. a4 {[%emt 0:04:04]} a5 {[%emt 0:00:27]} 9. h3 {[%emt 0:01:41]} Na6 {[%emt 0:00:19][%cal Oe7e5]} 10. Be3 {[%emt 0:03:37]} Nb4 {[%emt 0:02:34]} 11. Ne1 {[%emt 0:18:56]} Qc7 {[%emt 0:11:49] White has an edge.} 12. f4 {[%emt 0:07:00]} Rd8 {[%emt 0:02:24]} 13. Nd3 {[%emt 0:11:56]} Nxd3 {[%emt 0:15:28]} ({Black should try} 13... e6 $14) 14. Bxd3 $16 {[%emt 0:05:42]} e6 {[%emt 0:14:44]} 15. Qf3 {[%emt 0:05:36]} d5 {[%emt 0:05:46]} 16. e5 {[%emt 0:00:52]} Ne8 {[%emt 0:00:19]} 17. Rac1 {[%emt 0:01:59]} (17. f5 $16 {fxg6 is the strong threat.} exf5 18. cxd5) 17... dxc4 $14 {[%emt 0:03:13]} 18. Bxc4 {[%emt 0:00:11]} Qe7 {[%emt 0:00:30]} 19. Ne4 {[%emt 0:10:33]} Rb8 {[%emt 0:02:54]} (19... f5 $14) 20. Ba2 {[%emt 0:06:24] White is much more active. The black rooks are passive.} (20. g4 $1 $16) 20... b5 {[%emt 0:05:05] [#]} (20... Nc7 $14) 21. g4 {[%emt 0:01:54]} (21. Rxc6 $6 Bb7 22. Rc2 Qb4 $11) ({White should play} 21. axb5 $1 Rxb5 22. Rf2 (22. Rxc6 Rxb2 23. Rf2 Rxf2 $11)) 21... bxa4 $16 {[%emt 0:01:33]} 22. Rf2 {[%emt 0:01:00]} (22. Rxc6 Rxb2 23. Rf2 Rxf2 24. Bxf2 Bb7 $17) 22... a3 {[%emt 0:04:08]} 23. bxa3 {[%emt 0:03:08]} (23. Rxc6 $2 axb2 (23... Rxb2 24. f5 $11) 24. Nc5 b1=Q+ $19 (24... b1=B $2 25. d5 $19) (24... b1=R+ $2 25. Bxb1 Rxb1+ 26. Rf1 $19)) 23... Qxa3 {[%emt 0:00:24]} 24. Rc3 {[%emt 0:01:31]} ({Much weaker is} 24. Rxc6 Bb7 25. Rcc2 Rxd4 26. Bxd4 Qxf3 27. Rxf3 Bxe4 $15) (24. f5 {is more complex.} exf5 25. Ng5 Rb3 26. Nxf7 Kxf7 27. gxf5 Bxf5 28. Qxc6 Kf8 29. Qc4) 24... Qe7 {[%emt 0:02:28] [#] This costs Black the game.} (24... Qb4 $16 {was worth a try.}) 25. f5 $1 $18 {[%emt 0:02:14]} (25. Rxc6 Bb7 26. Rc5 f5 27. exf6 Nxf6 28. Nxf6+ Bxf6 $11) 25... Qc7 $2 {[%emt 0:11:52]} (25... exf5 {is more resistant.} 26. Ng5 (26. Bg5 Qc7 $16) 26... Rxd4 27. Bxf7+ (27. Bxd4 Qxg5 28. Rxc6 Qe7 $14) 27... Kh8) 26. fxe6 {[%emt 0:04:47]} Bxe6 {[%emt 0:00:42]} 27. Bxe6 {[%emt 0:00:05]} fxe6 {[%emt 0:00:09] [#]} 28. Rxc6 $3 {[%emt 0:00:59][%mdl 512]} Rb1+ {[%emt 0:01:47]} (28... Qa7 29. Nc5) 29. Kg2 {[%emt 0:00:44]} Qb7 {[%emt 0:03:01]} (29... Qd7 30. Nc5 Qd5 31. Nxe6 Qxf3+ 32. Rxf3 Ra8 33. Nxg7 Nxg7) 30. Nc5 {[%emt 0:00:40]} Qb4 {[%emt 0:02:57]} 31. Nxe6 {[%emt 0:00:42] White mates.} Rd7 {[%emt 0:02:54]} 32. Rc8 {[%emt 0:01:39]} Qe7 {[%emt 0:00:10]} 33. Qa8 {[%emt 0:01:12][%csl LRa5,LRe8] Weighted Error Value: White=0.32/Black=0.81.  Loses game:     	---       	Black=1      Mistake:       	White=3     	Black=4      Inaccurate:     	---       	Black=2      OK:         	White=6     	Black=5      Best:        	---       	Black=1      Strong:       	White=1     	---} 1-0

[Event "Romanian Championship 2024"]
[Site "Eforie Nord"]
[Date "2024.02.24"]
[Round "1.20"]
[White "Constantinoiu, Alexandru Ioan"]
[Black "Antal, Hunor-Zoltan"]
[Result "0-1"]
[ECO "B32"]
[WhiteElo "1754"]
[BlackElo "2272"]
[Annotator "TA"]
[PlyCount "200"]
[EventDate "2024.02.24"]
[EventType "swiss"]
[EventCountry "ROU"]
[SourceTitle "playchess.com"]
[Source "ChessBase"]
[SourceQuality "1"]
[TimeControl "40/5400+30:900+30"]

{[%evp 13,199,21,16,18,24,-2,17,18,16,17,18,16,16,23,20,26,33,10,21,0,0,0,18,0,0,-16,-17,-20,-33,-15,0,0,0,0,0,-2,-13,-16,18,-63,0,0,0,0,0,0,0,0,5,0,0,0,0,-2,-2,-9,0,0,0,0,0,-19,0,0,0,-35,-42,-67,0,0,0,0,0,-10,-9,-9,-12,-29,0,0,0,0,0,0,0,0,0,0,0,-23,-16,-48,-39,-41,-40,-42,-52,-103,-52,-52,-54,-113,-165,-145,-68,-138,-113,-135,-24,-24,-24,-24,-24,-34,-29,-33,-42,-35,-33,-150,-57,-84,-91,-174,-160,-236,-175,-186,-167,-252,0,-15,0,0,0,-4,0,-61,0,0,0,0,0,-976,-962,-877,-816,-700,0,0,0,-141,0,-141,-148,-643,-542,-362,-239,-5987,-6509,-6207,-6175,-5843,-635,-4925,-4910,-2070,-1301,-29983,-29984,-29984,-29984,-29984,-29980,-29977,-29978,-29978,-29974,-29987,-29988,-29997,-29998,-29998,-29998,-29998,-29999,-29999]} 1. e4 {[%emt 0:00:04]} c5 {[%emt 0:00:28]} 2. Nf3 {[%emt 0:00:11][%cal Bg1f3,Bf3d4,Bd4b5,Bb5a3,Ba3c4][%mdl 32]} Nc6 {[%emt 0:00:24]} 3. d4 {[%emt 0:00:21]} cxd4 {[%emt 0:00:05]} 4. Nxd4 {[%emt 0:00:07]} e5 {[%emt 0:00:17]} 5. Nb5 {[%emt 0:00:31]} d6 {[%emt 0:00:05]} 6. N1c3 {[%emt 0:01:32]} a6 {[%emt 0:00:22]} 7. Na3 {[%emt 0:00:16]} Be6 {[%emt 0:00:50]} 8. Be2 {[%emt 0:08:41]} Be7 {[%emt 0:11:37]} 9. O-O {[%emt 0:01:41]} Rc8 {[%emt 0:05:47]} 10. Be3 {[%emt 0:03:18] Die Stellung ist ausgeglichen.} Nf6 {[%emt 0:01:21]} 11. Nc4 $1 {[%emt 0:05:45]} Nd4 {[%emt 0:04:50]} 12. Bxd4 {[%emt 0:04:35]} Bxc4 {[%emt 0:00:33]} 13. Bxc4 {[%emt 0:05:37]} Rxc4 {[%emt 0:00:13]} 14. Be3 {[%emt 0:00:22]} h6 {[%emt 0:10:53]} 15. f3 {[%emt 0:05:24]} O-O {[%emt 0:00:41][%cal Od6d5]} 16. a4 {[%emt 0:10:35]} Qa5 {[%emt 0:12:07]} 17. Qd2 {[%emt 0:13:56]} Rfc8 18. Rfd1 {[%emt 0:36:34]} (18. Nd5 {wäre vielleicht verwirrender.} Qxd2 19. Nxe7+ Kf8 20. Bxd2 Kxe7 21. c3) 18... Qb4 {[%emt 0:06:08]} 19. Ra3 {[%emt 0:00:00]} Qxb2 {[%emt 0:13:45]} 20. Rb3 {[%emt 0:00:00]} Qxc3 {[%emt 0:00:28]} 21. Rxc3 {[%emt 0:00:00]} (21. Rxb7 $2 {ist das falsche Schlagen.} Bf8 22. Qxc3 Rxc3 $19) 21... Rxc3 {[%emt 0:00:04]} 22. Rc1 {[%emt 0:02:00]} d5 {[%emt 0:01:54]} 23. exd5 {[%emt 0:00:00]} Ba3 {[%emt 0:00:43]} 24. Re1 {[%emt 0:00:00]} Rxc2 {[%emt 0:02:10]} 25. Qd3 {[%emt 0:00:00]} R2c3 {[%emt 0:05:54]} 26. Qd2 {[%emt 0:00:00]} (26. Qf5 $1 $11) 26... Bc1 {[%emt 0:06:51] Schwarz steht aktiver.} (26... e4 $15 27. Qa2 R8c4) 27. Qf2 $11 {[%emt 0:00:00]} Nxd5 {[%emt 0:05:15]} 28. Bxc1 {[%emt 0:00:00]} Rxc1 {[%emt 0:00:06]} 29. Qd2 {[%emt 0:00:00][%csl LRc1,LRd5] Lässt Nf4 nicht zu} Rxe1+ {[%emt 0:00:22]} 30. Qxe1 {[%emt 0:00:00][%mdl 4096] Endspiel. KQ-KRN} Nf4 {[%emt 0:00:19]} 31. Qd2 {[%emt 0:00:00] Gegen Nd3 gerichtet.} b5 {[%emt 0:01:57]} 32. axb5 {[%emt 0:00:00]} axb5 {[%emt 0:00:08]} 33. g3 {[%emt 0:00:00]} Ne6 {[%emt 0:00:33]} 34. Qb4 {[%emt 0:03:19]} Rc1+ {[%emt 0:01:25]} 35. Kg2 {[%emt 0:00:41]} Rc2+ {[%emt 0:00:08]} 36. Kf1 {[%emt 0:01:10]} Rc5 {[%emt 0:01:53]} ({Viel schwächer ist} 36... Rxh2 37. Qxb5 Rh5 38. Qe8+ Nf8 39. Kg2 $17) 37. Kg2 {[%emt 0:00:44]} g6 {[%emt 0:00:41]} 38. h4 {[%emt 0:00:21]} h5 {[%emt 0:00:25]} 39. Kf2 {[%emt 0:01:00]} Rc2+ {[%emt 0:02:18]} 40. Kf1 {[%emt 0:00:00]} Rc5 {[%emt 0:00:00]} (40... Rc1+ $15 41. Kg2 Rc2+ 42. Kf1 Nd4) 41. Kf2 {[%emt 0:02:40]} Kg7 {[%emt 0:03:06]} 42. Ke3 {[%emt 0:02:25]} Kf6 {[%emt 0:02:52]} 43. Kd3 {[%emt 0:03:07]} Rd5+ {[%emt 0:00:26]} 44. Ke3 {[%emt 0:00:47]} Nd4 {[%emt 0:00:16]} 45. Kf2 {[%emt 0:03:16]} Rd8 {[%emt 0:01:20]} 46. Qc5 {[%emt 0:02:11]} Ke6 {[%emt 0:05:49]} 47. Qb6+ {[%emt 0:03:22]} Rd6 {[%emt 0:00:05]} 48. Qb8 {[%emt 0:00:34]} Rc6 {[%emt 0:04:26]} 49. Qe8+ {[%emt 0:00:35]} Kf6 {[%emt 0:00:21]} 50. f4 {[%emt 0:01:20]} Re6 {[%emt 0:03:18]} 51. fxe5+ {[%emt 0:00:43]} Kxe5 {[%emt 0:00:15]} 52. Qb8+ {[%emt 0:00:44]} Kd5 $1 {[%emt 0:01:04]} 53. Qa8+ {[%emt 0:00:37]} Nc6 {[%emt 0:02:00]} 54. Qa2+ {[%emt 0:00:21]} Kc5 {[%emt 0:00:11]} 55. Qb3 {[%emt 0:00:55] [#]} ({Besser ist} 55. Qc2+ $15 Kb6 56. Qa2) 55... Re2+ {[%emt 0:00:54]} 56. Kf1 $1 $15 {[%emt 0:00:21]} Re5 {[%emt 0:00:16]} 57. Kf2 {[%emt 0:00:35]} (57. Qc2+ $15 Kb6 58. Qf2+ Rc5 59. Ke1) 57... b4 $17 {[%emt 0:00:17]} 58. Qc2+ {[%emt 0:00:24]} Kb6 $1 {[%emt 0:01:13]} 59. Qc4 {[%emt 0:00:36]} (59. Qa2 $1 $15) 59... Rc5 {[%emt 0:00:26]} 60. Qb3 {[%emt 0:00:36]} Rf5+ {[%emt 0:00:55]} ({Vorzuziehen ist} 60... Kb5 $1 $17 {Droht stark ...Nd4.} 61. Ke1 Rf5) 61. Ke1 $1 $11 {[%emt 0:00:11]} Kb5 {[%emt 0:01:02]} 62. Qd3+ {[%emt 0:00:38]} Kc5 {[%emt 0:00:13] Zielt auf ...Re5+ ab.} 63. Qe3+ {[%emt 0:00:40]} Nd4 {[%emt 0:00:27] Und ...Rf3 würde nun gewinnen.} 64. Kd2 {[%emt 0:00:26]} Kd5 {[%emt 0:00:30]} 65. Qe7 {[%emt 0:00:38]} Rf2+ {[%emt 0:00:13]} 66. Kc1 {[%emt 0:00:25]} (66. Kd3 $15 Nc6 67. Qe4+ Kd6 68. Kc4) 66... b3 {[%emt 0:00:51]} (66... Kc4 $17 67. Qe3 Re2) 67. Qb7+ {[%emt 0:00:28]} Kc4 {[%emt 0:00:29]} 68. Qa6+ {[%emt 0:00:14]} (68. Kb1 $17) 68... Kc3 $19 {[%emt 0:00:15] Weiss muss nun ...Rc2+ beachten.} 69. Qa5+ {[%emt 0:00:23]} (69. Qc8+ $17 Kd3 70. Qa6+ Ke3 71. Qb6) 69... Kd3 {[%emt 0:00:05]} 70. Qa6+ {[%emt 0:00:19]} Ke3 {[%emt 0:00:12]} 71. Kb1 {[%emt 0:01:06]} (71. Qb6 {ist eine bessere Verteidigung.}) 71... b2 $2 {[%emt 0:01:50]} ({Günstiger ist} 71... Nf3 $1 $19 {( -> ...Ra2)} 72. Qb6+ Ke2 (72... Nd4 73. Qa7 $11)) 72. Qb6 {[%emt 0:00:30]} Kd3 {[%emt 0:01:00]} 73. Qa6+ {[%emt 0:00:17]} Ke3 {[%emt 0:00:18]} 74. Qb6 {[%emt 0:00:06]} Rd2 {[%emt 0:00:08]} 75. Qc5 {[%emt 0:00:39]} (75. Qa7 $11) 75... Kf3 {[%emt 0:01:05]} (75... Kf2 $15) 76. Qc3+ {[%emt 0:00:56]} Ke2 {[%emt 0:00:13]} 77. Qc4+ {[%emt 0:00:27]} Ke1 {[%emt 0:00:29] ...f5 ist eine echte Drohung.} 78. Qc3 $2 {[%emt 0:00:34][%mdl 8192]} (78. Qxf7 $11 Ne2 79. Qf6) 78... f5 {[%emt 0:01:02]} 79. Qe3+ {[%emt 0:00:22] [#]} Ne2 $1 {[%emt 0:00:02]} 80. Qf3 {[%emt 0:00:30]} Nd4 $2 {[%emt 0:00:49]} (80... Rd1+ $19 81. Kxb2 Rd4) 81. Qe3+ $11 {[%emt 0:00:33]} Kd1 {[%emt 0:00:11]} 82. Qf4 {[%emt 0:00:41] [#]} (82. Qa3 $11) 82... Ke2 $1 $17 {[%emt 0:00:09]} 83. Qe5+ {[%emt 0:00:15]} (83. Qd6 $1 $11) 83... Kf2 {[%emt 0:00:07] Und jetzt ...Ne2 wäre schön.} 84. Qf4+ $2 {[%emt 0:00:30][%mdl 8192] Ein Fehler, der zur Niederlage führt.} (84. Qc5 $17) 84... Nf3 $19 {[%emt 0:00:03]} 85. Qc7 {[%emt 0:00:39]} Kg2 {[%emt 0:00:21] Droht ...Rd4 und aus.} 86. Qf4 $2 {[%emt 0:00:13]} (86. Qc6 Rf2 (86... Kxg3 87. Qxg6+ Kxh4 88. Qxf5 $11) 87. Qxg6) 86... Rf2 {[%emt 0:00:11]} 87. Qc7 {[%emt 0:00:34]} Nd2+ {[%emt 0:01:17]} 88. Kxb2 {[%emt 0:00:06]} Ne4+ {[%emt 0:00:02]} (88... Nf1+ $142 89. Kb3 Nxg3 90. Qc6+ Kh3) 89. Kc1 {[%emt 0:00:27]} Nxg3 {[%emt 0:00:07]} 90. Qc6+ {[%emt 0:00:23]} Kh2 {[%emt 0:00:47]} 91. Qxg6 {[%emt 0:00:14]} f4 {[%emt 0:00:03] Schwarz setzt Matt.} 92. Kd1 {[%emt 0:00:40]} f3 {[%emt 0:00:02]} 93. Qf7 {[%emt 0:01:21]} Rf1+ {[%emt 0:00:15]} 94. Kd2 {[%emt 0:00:10]} f2 {[%emt 0:00:03]} 95. Qf3 {[%emt 0:00:58] [#]} Rd1+ $3 {[%emt 0:00:10][%mdl 512]} 96. Ke3 {[%emt 0:00:21]} (96. Qxd1 f1=Q) 96... f1=Q {[%emt 0:00:54]} 97. Qg2+ {[%emt 0:00:36]} Qxg2 {[%emt 0:00:09]} 98. Kf4 {[%emt 0:00:12]} Rd5 {[%emt 0:00:23][%cal Rg2f2]} 99. Ke3 {[%emt 0:00:09]} Qe4+ {[%emt 0:00:08]} 100. Kf2 {[%emt 0:00:05]} Rd2# {[%emt 0:00:03] Gewichteter Fehlerwert: Weiß=0.12 (sehr präzise) /Schwarz=0.11 (sehr präzise) .  Verlustzug:     	Weiß=2     	---        Gewinn verpasst:   	---       	Schwarz=1     Fehler:       	Weiß=12    	Schwarz=6     Ungenau:       	Weiß=4     	Schwarz=2     OK:         	Weiß=27    	Schwarz=24    Bester:       	Weiß=5     	Schwarz=10    Stark:        	Weiß=3     	Schwarz=3} 0-1